bitfinex-derivatives/quotes_SOLF0:USTF0_20251020
["timestamp","ask_amount","ask_price","bid_price","bid_amount"]
[1760967353913,4.6721,192.61,192.46,9.30776591]
[1760967354108,4.6723,192.6,192.51,4.6741]
[1760967354308,8.16063647,192.67,192.44,35.56063647]
[1760967354503,9.3389,192.72,192.58,4.81028294]
[1760967354504,15.59,192.71,192.58,4.81028294]
[1760967354709,4.6713,192.64,192.59,9.29865363]
[1760967354911,23.75063647,192.7,192.6,9.29865363]
[1760967355105,23.75063647,192.7,192.61,9.29865363]
[1760967355311,4.672,192.61,192.55,4.81028294]
[1760967355505,4.672,192.61,192.57,4.81028294]
[1760967355701,23.75063647,192.7,192.58,13.98881769]
[1760967355907,23.75063647,192.7,192.59,9.17853475]
[1760967356207,23.75063647,192.7,192.6,9.17853475]
[1760967356406,23.75063647,192.7,192.61,4.01216289]
[1760967356609,23.75063647,192.7,192.62,4.01216289]
[1760967356910,4.6717,192.62,192.58,4.81028294]
[1760967357114,4.6717,192.62,192.59,9.34604306]
[1760967357312,4.6717,192.62,192.6,9.34604306]
[1760967357513,4.6711,192.65,192.61,4.18599753]
[1760967357816,15.82203266,192.85,192.62,14.15014342]
[1760967357817,9.3359,192.78,192.62,14.15014342]
[1760967358006,4.6696,192.71,192.64,4.81028294]
[1760967358315,4.6696,192.71,192.65,14.15014342]
[1760967358517,4.6696,192.71,192.66,9.33986048]
[1760967358717,4.6696,192.71,192.67,9.33986048]
[1760967358912,44.12,192.79,192.65,4.81028294]
[1760967358913,134.7,192.77,192.68,4.18599753]
[1760967359120,134.7,192.77,192.69,4.18599753]
[1760967359313,134.7,192.77,192.65,4.81028294]
[1760967359515,4.669,192.73,192.66,9.30959945]
[1760967359709,4.669,192.73,192.67,9.30959945]
[1760967359912,4.669,192.73,192.68,9.30959945]
[1760967360105,4.6694,192.72,192.69,4.16956811]
[1760967360415,134.7,192.77,192.7,4.16956811]
[1760967360613,134.7,192.77,192.66,4.81028294]
[1760967360807,134.7,192.77,192.67,9.31023841]
[1760967361009,52.28063647,192.79,192.68,9.31023841]
[1760967361217,44.12,192.79,192.69,9.31023841]
[1760967361416,8.16063647,192.81,192.7,4.17022806]
[1760967361718,8.16063647,192.81,192.71,4.17022806]
[1760967361922,4.6683,192.77,192.72,4.17022806]
[1760967362217,4.6683,192.77,192.73,4.16061928]
[1760967362420,4.6675,192.79,192.68,9.48028294]
[1760967362718,44.12,192.82,192.7,4.81028294]
[1760967362913,44.12,192.82,192.71,9.29364147]
[1760967363121,44.12,192.82,192.7,4.81028294]
[1760967363122,44.12,192.82,192.72,9.29364147]
[1760967363323,4.6675,192.8,192.73,4.16198569]
[1760967363522,4.6675,192.8,192.74,4.16198569]
[1760967363726,44.12,192.82,192.7,4.81028294]
[1760967364022,8.16063647,192.81,192.71,4.15924706]
[1760967364326,8.16063647,192.77,192.67,4.81028294]
[1760967364519,0.90296968,192.84,192.68,9.28480764]
[1760967364827,8.16063647,192.83,192.69,9.28480764]
[1760967365124,8.16063647,192.79,192.7,4.15809172]
[1760967365320,8.16063647,192.79,192.71,4.15809172]
[1760967365619,8.16063647,192.75,192.65,4.81028294]
[1760967365922,8.16063647,192.75,192.66,5.12404959]
[1760967366120,8.16063647,192.75,192.67,5.12404959]
[1760967366322,8.16063647,192.75,192.65,4.81028294]
[1760967366523,27.10063647,192.75,192.66,5.12258806]
[1760967366727,27.10063647,192.75,192.67,5.12311241]
[1760967366915,9.3344,192.81,192.68,5.12241796]
[1760967367224,8.16063647,192.78,192.69,5.12075089]
[1760967367424,8.16063647,192.82,192.66,4.81028294]
[1760967367633,8.16063647,192.82,192.68,4.81028294]
[1760967367929,8.16063647,192.82,192.67,5.11981176]
[1760967367930,8.16063647,192.82,192.69,9.9300947]
[1760967368118,8.16063647,192.82,192.7,5.11981176]
[1760967368319,8.16063647,192.82,192.71,5.11981176]
[1760967368526,8.16063647,192.82,192.68,4.81028294]
[1760967368728,8.16063647,192.78,192.69,5.11823827]
[1760967368923,8.16063647,192.78,192.66,4.81028294]
[1760967369129,4.67,192.7,192.67,5.11961402]
[1760967369429,4.67,192.7,192.68,5.11961402]
[1760967369725,4.67,192.7,192.69,5.11961402]
[1760967370024,8.16063647,192.78,192.69,5.11961402]
[1760967370227,8.16063647,192.78,192.7,5.11889164]
[1760967370421,4.6699,192.7,192.67,4.81028294]
[1760967370618,4.6699,192.7,192.68,5.11889207]
[1760967370815,4.6699,192.7,192.69,5.11889207]
[1760967371225,48.2343,192.81,192.66,4.81028294]
[1760967371226,4.6705,192.67,192.66,4.81028294]
[1760967371414,4.6705,192.67,192.65,4.81028294]
[1760967371621,8.16063647,192.7,192.64,4.81028294]
[1760967371817,4.6709,192.66,192.64,4.81028294]
[1760967372322,8.16063647,192.7,192.61,4.81028294]
[1760967372716,5.39081792,192.68,192.61,4.81028294]
[1760967373522,5.39081792,192.68,192.6,4.81028294]
[1760967374027,4.6718,192.62,192.6,4.81028294]
[1760967374729,4.6713,192.64,192.61,4.81028294]
[1760967374924,5.39081792,192.72,192.62,4.81028294]
[1760967375135,4.67,192.69,192.64,4.81028294]
[1760967375340,4.67,192.69,192.65,4.81028294]
[1760967375633,4.6704,192.68,192.65,4.81028294]
[1760967375834,5.39081792,192.72,192.63,4.81028294]
[1760967376132,5.39081792,192.68,192.61,4.81028294]
[1760967376523,5.39081792,192.68,192.6,4.81028294]
[1760967376833,5.39081792,192.68,192.61,4.81028294]
[1760967377331,4.6716,192.63,192.62,4.81028294]
[1760967377530,4.6716,192.63,192.62,4.03251824]
[1760967377929,4.671,192.66,192.62,4.03251824]
[1760967378132,5.39081792,192.68,192.63,4.03251824]
[1760967378327,5.39081792,192.68,192.64,4.03251824]
[1760967378530,4.6705,192.67,192.65,4.03251824]
[1760967378733,4.6705,192.67,192.66,4.03251824]
[1760967379530,5.7105,192.67,192.66,1.824e-05]
[1760967380236,4.6714,192.64,192.61,4.81028294]
[1760967381338,4.6717,192.63,192.61,4.81028294]
[1760967382532,4.6717,192.63,192.58,6.38877487]
[1760967382533,4.672,192.61,192.59,4.81028294]
[1760967382834,15.59,192.71,192.59,4.81028294]
[1760967383035,4.6716,192.63,192.59,4.81028294]
[1760967383229,4.6716,192.63,192.6,9.68382228]
[1760967383435,5.39081792,192.67,192.61,4.87353934]
[1760967383631,4.6708,192.66,192.62,4.87353934]
[1760967383834,4.6708,192.66,192.58,6.38877487]
[1760967383835,4.6708,192.66,192.63,4.87353934]
[1760967384139,4.6708,192.66,192.61,4.81028294]
[1760967384334,49.57081792,192.71,192.62,4.87621671]
[1760967384641,49.57081792,192.71,192.63,4.87621671]
[1760967384936,5.39081792,192.67,192.6,4.81028294]
[1760967385135,5.39081792,192.67,192.61,4.87721276]
[1760967385332,5.39081792,192.67,192.62,4.87721276]
[1760967385538,5.39081792,192.67,192.59,4.81028294]
[1760967385739,5.39081792,192.67,192.6,4.87923977]
[1760967385936,5.39081792,192.67,192.61,4.87923977]
[1760967386234,4.6714,192.63,192.62,4.87923977]
[1760967386537,4.6714,192.63,192.62,3.977e-05]
[1760967386734,4.6724,192.59,192.57,8.294e-05]
[1760967387043,5.39081792,192.59,192.54,6.38877487]
[1760967387433,5.39081792,192.59,192.52,6.38877487]
[1760967387929,4.6734,192.55,192.52,6.38877487]
[1760967388131,5.39081792,192.59,192.51,6.38877487]
[1760967388630,4.6737,192.54,192.51,6.38877487]
[1760967389027,10.06341792,192.59,192.51,6.38877487]
[1760967389233,5.39081792,192.59,192.52,6.38877487]
[1760967389543,44.18,192.62,192.53,6.38877487]
[1760967389739,44.18,192.62,192.52,6.38877487]
[1760967391345,4.6729,192.57,192.53,6.38877487]
[1760967391640,44.18,192.62,192.53,6.38877487]
[1760967391641,44.18,192.62,192.54,3.85401101]
[1760967391948,44.18,192.62,192.55,3.85401101]
[1760967392144,44.18,192.62,192.56,3.85401101]
[1760967392342,44.18,192.62,192.57,3.85401101]
[1760967392549,44.18,192.62,192.58,3.85401101]
[1760967392845,4.6719,192.61,192.59,3.85401101]
[1760967393044,44.18,192.62,192.53,6.38877487]
[1760967393244,44.18,192.62,192.54,3.8546021]
[1760967393447,4.6726,192.59,192.55,3.8546021]
[1760967393641,4.6726,192.59,192.52,6.38877487]
[1760967394244,4.6728,192.58,192.53,6.38877487]
[1760967394548,44.18,192.62,192.52,6.38877487]
[1760967394747,44.18,192.62,192.51,6.38877487]
[1760967395246,44.18,192.62,192.52,6.38877487]
[1760967395443,44.18,192.62,192.53,6.38877487]
[1760967396142,4.6733,192.56,192.54,6.38877487]
[1760967396352,5.39081792,192.6,192.54,6.38877487]
[1760967396545,5.39081792,192.6,192.53,6.38877487]
[1760967396743,5.39081792,192.6,192.4,15.97193718]
[1760967396744,4.6734,192.55,192.52,6.38877487]
[1760967396945,5.39081792,192.6,192.52,6.38877487]
[1760967397255,4.6738,192.54,192.53,6.38877487]
[1760967397752,4.6738,192.54,192.51,6.38877487]
[1760967397958,4.674,192.53,192.51,6.38877487]
[1760967398157,4.674,192.53,192.52,6.38877487]
[1760967398756,4.674,192.53,192.49,9.58316231]
[1760967398757,4.674,192.53,192.51,6.38877487]
[1760967399367,4.674,192.53,192.52,6.38877487]
[1760967399658,5.39081792,192.6,192.52,6.38877487]
[1760967399854,13.4,192.62,192.54,6.40560935]
[1760967400058,13.4,192.62,192.55,6.40560935]
[1760967400659,13.4,192.62,192.54,6.40560935]
[1760967401461,4.6728,192.58,192.54,6.40560935]
[1760967401665,4.6728,192.58,192.53,6.40560935]
[1760967402162,4.6728,192.58,192.51,9.58316231]
[1760967402163,4.6723,192.6,192.54,6.40560935]
[1760967402363,4.6723,192.6,192.55,6.40560935]
[1760967402765,9.3388,192.72,192.55,6.40560935]
[1760967402966,5.39081792,192.7,192.55,6.40560935]
[1760967403858,15.2,192.71,192.58,6.40560935]
[1760967404462,4.6706,192.67,192.58,6.40560935]
[1760967404664,5.39081792,192.69,192.58,6.40560935]
[1760967404863,5.39081792,192.69,192.57,6.40560935]
[1760967405361,5.39081792,192.69,192.56,6.40560935]
[1760967405666,4.6711,192.65,192.57,6.40560935]
[1760967407467,5.39081792,192.69,192.57,6.40560935]
[1760967408366,5.39081792,192.65,192.57,6.40560935]
[1760967408562,5.39081792,192.65,192.56,6.40560935]
[1760967408763,4.6726,192.59,192.55,6.40560935]
[1760967409259,4.6715,192.63,192.56,6.40560935]
[1760967409562,4.6715,192.63,192.57,6.40560935]
[1760967409761,4.6715,192.63,192.55,6.40560935]
[1760967410165,4.6711,192.65,192.55,6.40560935]
[1760967410364,4.6711,192.65,192.57,6.40560935]
[1760967410570,5.39081792,192.69,192.57,6.40560935]
[1760967410769,5.39081792,192.69,192.56,6.40560935]
[1760967411565,4.6717,192.63,192.56,6.40560935]
[1760967412568,5.39081792,192.69,192.56,6.40560935]
[1760967413861,5.39081792,192.69,192.58,6.40560935]
[1760967414572,15.2,192.71,192.59,6.40560935]
[1760967414760,15.2,192.71,192.6,6.40560935]
[1760967415571,15.2,192.71,192.59,6.40560935]
[1760967415956,4.6707,192.67,192.59,6.40560935]
[1760967416174,15.2,192.71,192.59,6.40560935]
[1760967416469,15.2,192.71,192.58,6.40560935]
[1760967417368,15.2,192.71,192.59,6.40560935]
[1760967417973,4.6703,192.68,192.6,11.07760935]
[1760967418161,4.6703,192.68,192.6,4.672]
[1760967418670,4.6703,192.68,192.61,4.6717]
[1760967418971,4.6698,192.7,192.61,6.40560935]
[1760967419375,4.6692,192.73,192.64,4.6711]
[1760967419570,44.2,192.77,192.64,4.6711]
[1760967420072,4.6688,192.74,192.66,4.6707]
[1760967420468,4.83530864,192.8,192.64,6.40560935]
[1760967420674,11.79879488,192.82,192.63,5.39081792]
[1760967420675,4.83530864,192.82,192.72,4.669]
[1760967421070,4.83530864,192.82,192.74,4.6686]
[1760967421271,4.83530864,192.83,192.67,11.79642727]
[1760967421572,4.83530864,192.84,192.67,5.39081792]
[1760967421973,4.667,192.82,192.67,5.39081792]
[1760967422273,4.83530864,192.84,192.67,5.39081792]
[1760967422475,4.6671,192.82,192.7,4.6697]
[1760967422779,4.83530864,192.84,192.66,5.39081792]
[1760967422961,4.83530864,192.83,192.66,5.39081792]
[1760967423168,4.83530864,192.81,192.62,6.40560935]
[1760967423359,10.22612656,192.79,192.6,6.40560935]
[1760967423567,5.39081792,192.75,192.59,6.40560935]
[1760967424678,5.39081792,192.75,192.57,11.07850935]
[1760967424977,4.6707,192.66,192.57,6.40560935]
[1760967425177,5.39081792,192.75,192.57,6.40560935]
[1760967425375,49.4557,192.78,192.6,6.40560935]
[1760967425677,5.39081792,192.77,192.58,6.40560935]
[1760967425878,5.39081792,192.73,192.57,6.40560935]
[1760967426175,5.39081792,192.73,192.55,14.97398023]
[1760967426176,4.6712,192.65,192.55,6.40560935]
[1760967426368,5.39081792,192.69,192.55,6.40560935]
[1760967426977,4.6717,192.63,192.55,6.40560935]
[1760967427674,4.6719,192.61,192.55,6.40560935]
[1760967427971,4.6719,192.61,192.54,6.40560935]
[1760967428177,5.39081792,192.65,192.53,6.40560935]
[1760967428488,4.6726,192.59,192.51,6.40560935]
[1760967429378,4.6729,192.58,192.51,6.40560935]
[1760967429875,5.39081792,192.61,192.49,6.40560935]
[1760967430079,4.6736,192.55,192.49,6.40560935]
[1760967430280,5.39081792,192.61,192.49,6.40560935]
[1760967431180,5.39081792,192.61,192.48,6.40560935]
[1760967431181,43.52,192.6,192.48,6.40560935]
[1760967431394,5.39081792,192.57,192.47,6.40560935]
[1760967431583,4.6744,192.51,192.43,6.40560935]
[1760967431878,5.39081792,192.53,192.43,6.40560935]
[1760967432174,5.39081792,192.53,192.42,6.40560935]
[1760967432379,4.6745,192.51,192.41,6.40560935]
[1760967432581,5.39081792,192.53,192.41,6.40560935]
[1760967433374,4.6743,192.52,192.41,6.40560935]
[1760967433580,5.39081792,192.58,192.42,6.40560935]
[1760967433778,5.39081792,192.58,192.43,11.79642727]
[1760967433979,5.39081792,192.58,192.44,6.40560935]
[1760967434167,4.6732,192.56,192.44,11.08140935]
[1760967434877,4.6732,192.56,192.44,6.40560935]
[1760967435271,4.6732,192.56,192.43,6.40560935]
[1760967435669,4.6732,192.56,192.44,6.40560935]
[1760967435875,4.6725,192.59,192.44,6.40560935]
[1760967436473,4.6725,192.59,192.45,8.14139882]
[1760967436670,4.6719,192.62,192.45,14.54700817]
[1760967436876,44.22,192.64,192.45,14.54700817]
[1760967437075,44.22,192.64,192.46,11.08100935]
[1760967437373,4.6726,192.58,192.46,11.08100935]
[1760967437574,44.22,192.64,192.45,6.40560935]
[1760967437575,8.14139882,192.63,192.45,6.40560935]
[1760967437772,8.14139882,192.63,192.43,11.08170935]
[1760967438178,8.14139882,192.59,192.43,6.40560935]
[1760967438384,8.14139882,192.59,192.4,6.40560935]
[1760967438773,4.6746,192.51,192.41,6.40560935]
[1760967439379,23.73139882,192.59,192.4,6.40560935]
[1760967439380,8.14139882,192.55,192.4,6.40560935]
[1760967439683,8.14139882,192.55,192.38,6.40560935]
[1760967439684,23.73139882,192.55,192.38,6.40560935]
[1760967440080,23.73139882,192.55,192.36,6.40560935]
[1760967440081,8.14139882,192.51,192.36,6.40560935]
[1760967440382,28.24,192.5,192.36,6.40560935]
[1760967441379,8.14139882,192.55,192.37,6.40560935]
[1760967441681,26.72139882,192.55,192.39,6.40560935]
[1760967441872,4.6746,192.5,192.39,6.40560935]
[1760967442073,26.72139882,192.55,192.38,11.08290935]
[1760967442581,4.6751,192.49,192.38,11.08290935]
[1760967442973,4.6753,192.48,192.38,11.08290935]
[1760967443181,42.31139882,192.55,192.38,6.40560935]
[1760967444078,4.6746,192.5,192.38,6.40560935]
[1760967444385,42.31139882,192.55,192.38,6.40560935]
[1760967444583,4.6752,192.48,192.38,6.40560935]
[1760967444769,42.31139882,192.55,192.37,6.40560935]
[1760967445580,4.6755,192.47,192.37,6.40560935]
[1760967445777,42.31139882,192.55,192.37,6.40560935]
[1760967446087,4.6757,192.46,192.36,6.40560935]
[1760967446279,42.31139882,192.55,192.36,11.08340935]
[1760967446469,42.31139882,192.55,192.37,6.40560935]
[1760967446979,4.6751,192.48,192.37,6.40560935]
[1760967447182,42.31139882,192.55,192.37,6.40560935]
[1760967447484,42.31139882,192.55,192.36,6.40560935]
[1760967447982,15.59,192.53,192.36,6.40560935]
[1760967448487,15.59,192.53,192.35,6.40560935]
[1760967448674,43.0,192.57,192.37,6.40560935]
[1760967448878,8.14139882,192.54,192.36,6.40560935]
[1760967449070,15.59,192.53,192.35,6.40560935]
[1760967449285,15.59,192.53,192.34,6.40560935]
[1760967449487,15.59,192.53,192.35,6.40560935]
[1760967449877,15.59,192.53,192.34,6.40560935]
[1760967450482,8.14139882,192.5,192.34,6.40560935]
[1760967450679,4.6769,192.41,192.34,6.40560935]
[1760967451283,4.6769,192.41,192.33,6.40560935]
[1760967451880,15.59,192.48,192.33,6.40560935]
[1760967452887,8.14139882,192.5,192.34,6.40560935]
[1760967453190,27.74,192.52,192.34,6.40560935]
[1760967453388,8.14139882,192.49,192.33,6.40560935]
[1760967453789,35.88139882,192.52,192.34,6.40560935]
[1760967453981,61.45139882,192.52,192.34,6.40560935]
[1760967454183,61.45139882,192.52,192.33,11.08410935]
[1760967454787,4.6767,192.42,192.33,11.08410935]
[1760967454988,23.73139882,192.48,192.33,6.40560935]
[1760967455192,23.73139882,192.48,192.31,4.6791]
[1760967455486,23.73139882,192.48,192.29,4.6796]
[1760967456190,4.6779,192.37,192.27,4.6801]
[1760967456690,4.6782,192.35,192.27,4.6801]
[1760967456989,4.6782,192.35,192.24,6.40560935]
[1760967457393,4.6782,192.35,192.23,6.40560935]
[1760967457889,4.6786,192.34,192.23,6.40560935]
[1760967458094,23.73139882,192.44,192.22,6.40560935]
[1760967458285,8.14139882,192.44,192.22,6.40560935]
[1760967458591,8.14139882,192.44,192.23,6.40560935]
[1760967458783,4.6776,192.38,192.28,4.6798]
[1760967459092,19.76,192.45,192.26,6.40560935]
[1760967459284,4.6775,192.39,192.31,4.6791]
[1760967459592,8.14139882,192.5,192.27,8.14139882]
[1760967459989,4.6768,192.42,192.27,8.14139882]
[1760967460291,8.14139882,192.5,192.28,44.32]
[1760967460489,4.678,192.37,192.29,4.6797]
[1760967460692,8.14139882,192.46,192.29,4.6797]
[1760967460885,8.14139882,192.46,192.25,6.40560935]
[1760967461283,4.678,192.37,192.3,4.6794]
[1760967461480,9.3519,192.45,192.24,50.72560935]
[1760967461787,8.14139882,192.46,192.24,6.40560935]
[1760967461788,4.6787,192.34,192.24,6.40560935]
[1760967462099,9.3526,192.44,192.24,6.40560935]
[1760967462293,8.14139882,192.5,192.25,6.40560935]
[1760967462492,4.6776,192.39,192.31,4.679]
[1760967462992,4.6778,192.38,192.31,4.679]
[1760967463682,4.6772,192.4,192.32,4.6789]
[1760967463878,9.35,192.49,192.26,44.32]
[1760967464088,9.35,192.49,192.26,50.72560935]
[1760967464289,4.6762,192.44,192.27,23.90740817]
[1760967464488,8.14139882,192.5,192.27,8.14139882]
[1760967464693,23.73139882,192.5,192.27,8.14139882]
[1760967465087,4.6773,192.39,192.3,4.6794]
[1760967466191,4.6778,192.38,192.3,4.6794]
[1760967466397,4.6778,192.38,192.31,4.6791]
[1760967466789,4.6771,192.4,192.31,4.6791]
[1760967466990,8.14139882,192.46,192.31,4.6791]
[1760967469998,4.6774,192.39,192.29,4.6796]
[1760967470388,23.73139882,192.46,192.29,4.6796]
[1760967470701,4.6779,192.37,192.29,4.6796]
[1760967472501,4.6774,192.39,192.25,6.40560935]
[1760967472698,8.14139882,192.45,192.26,6.40560935]
[1760967472894,15.59,192.48,192.26,6.40560935]
[1760967473093,4.6774,192.39,192.32,4.6789]
[1760967473295,4.6774,192.39,192.26,6.40560935]
[1760967473495,8.14139882,192.46,192.26,6.40560935]
[1760967473794,23.73139882,192.46,192.26,6.40560935]
[1760967474000,24.9418,192.45,192.26,6.40560935]
[1760967474298,4.678,192.37,192.27,4.6801]
[1760967474486,8.14139882,192.42,192.27,4.6801]
[1760967474690,4.6785,192.35,192.27,4.6801]
[1760967475102,23.73139882,192.42,192.25,11.08630935]
[1760967475297,6.40797696,192.51,192.25,11.08630935]
[1760967475298,8.14139882,192.38,192.25,6.40560935]
[1760967475494,8.14139882,192.38,192.23,6.40560935]
[1760967475893,8.14139882,192.38,192.24,4.6809]
[1760967476403,8.14139882,192.38,192.25,4.6806]
[1760967476599,8.14139882,192.38,192.24,6.40560935]
[1760967477000,8.14139882,192.38,192.26,4.6803]
[1760967477603,8.14139882,192.38,192.24,11.08650935]
[1760967478001,4.6791,192.32,192.24,11.08650935]
[1760967478408,8.14139882,192.38,192.24,4.6809]
[1760967481012,8.14139882,192.38,192.25,6.40560935]
[1760967481204,8.14139882,192.38,192.24,6.40560935]
[1760967481404,4.679,192.32,192.17,6.40560935]
[1760967481601,4.679,192.32,192.23,4.681]
[1760967481802,4.6794,192.31,192.23,4.681]
[1760967481999,4.6794,192.31,192.15,52.36139882]
[1760967482000,9.3557,192.37,192.22,4.6813]
[1760967482406,9.3557,192.37,192.15,58.76700817]
[1760967482407,9.3564,192.36,192.15,8.14139882]
[1760967482605,20.42530864,192.36,192.15,8.14139882]
[1760967482814,28.56670746,192.34,192.12,27.76]
[1760967483107,28.56670746,192.34,192.15,4.6831]
[1760967483108,9.3577,192.33,192.15,4.6831]
[1760967483920,4.6811,192.24,192.15,4.6831]
[1760967484100,9.3577,192.33,192.11,8.14139882]
[1760967484305,4.679,192.32,192.19,8.14139882]
[1760967484506,4.83530864,192.4,192.23,8.14139882]
[1760967484712,4.83530864,192.42,192.23,8.14139882]
[1760967484902,4.6782,192.36,192.23,8.14139882]
[1760967485103,4.83530864,192.41,192.23,8.14139882]
[1760967485412,4.6785,192.35,192.23,8.14139882]
[1760967485610,4.83530864,192.41,192.23,8.14139882]
[1760967485800,4.83530864,192.44,192.3,4.6795]
[1760967486001,6.40797696,192.46,192.23,8.14139882]
[1760967486002,4.83530864,192.41,192.23,8.14139882]
[1760967486299,4.83530864,192.42,192.23,8.14139882]
[1760967486502,4.83530864,192.41,192.23,8.14139882]
[1760967486706,4.6783,192.35,192.23,8.14139882]
[1760967487214,4.6778,192.37,192.23,8.14139882]
[1760967488012,4.83530864,192.45,192.27,8.14139882]
[1760967488313,4.6772,192.4,192.32,4.6789]
[1760967488614,24.9404,192.48,192.32,4.6789]
[1760967490015,4.6767,192.42,192.32,4.6789]
[1760967490809,4.6762,192.44,192.27,8.14139882]
[1760967491014,66.25139882,192.5,192.27,8.14139882]
[1760967491914,4.6765,192.43,192.31,4.6792]
[1760967492111,66.25139882,192.5,192.31,4.6792]
[1760967492314,4.6758,192.46,192.27,8.14139882]
[1760967492514,4.6758,192.46,192.27,14.54700817]
[1760967493018,4.6758,192.46,192.34,4.6785]
[1760967493616,52.36139882,192.51,192.34,4.6785]
[1760967493817,52.36139882,192.51,192.32,4.679]
[1760967494121,52.36139882,192.51,192.31,8.14139882]
[1760967494310,44.22,192.51,192.37,4.6777]
[1760967494816,44.22,192.51,192.31,8.14139882]
[1760967495017,44.22,192.51,192.35,4.6781]
[1760967496317,44.24,192.53,192.35,4.6781]
[1760967496720,4.6758,192.46,192.35,4.6781]
[1760967496909,5.40107089,192.5,192.35,4.6781]
[1760967497522,5.40107089,192.46,192.33,4.6787]
[1760967497817,5.40107089,192.46,192.29,6.40560935]
[1760967498020,4.6766,192.43,192.34,4.6783]
[1760967498424,5.40107089,192.5,192.31,5.40107089]
[1760967498606,5.40107089,192.5,192.34,4.6785]
[1760967498807,5.40107089,192.46,192.27,11.80668024]
[1760967499020,5.40107089,192.42,192.24,6.40560935]
[1760967499206,20.99107089,192.46,192.22,9.58316231]
[1760967499207,5.40107089,192.38,192.22,6.40560935]
[1760967499520,5.40107089,192.38,192.25,4.6807]
[1760967499916,4.6783,192.36,192.25,4.6807]
[1760967500120,5.40107089,192.4,192.26,4.6803]
[1760967500309,9.3519,192.45,192.24,11.80668024]
[1760967500517,43.9119,192.45,192.24,11.80668024]
[1760967500722,5.40107089,192.42,192.24,11.80668024]
[1760967500918,5.40107089,192.42,192.24,5.40107089]
[1760967501114,4.6783,192.35,192.24,5.40107089]
[1760967501420,5.40107089,192.42,192.24,11.80668024]
[1760967501818,4.678,192.37,192.28,4.68]
[1760967502725,5.40107089,192.42,192.28,4.68]
[1760967502726,4.6782,192.36,192.28,4.68]
[1760967503724,4.6786,192.34,192.26,4.6804]
[1760967504214,5.40107089,192.38,192.26,4.6804]
[1760967504410,5.40107089,192.38,192.24,4.6809]
[1760967504717,5.40107089,192.34,192.18,6.40560935]
[1760967504915,5.40107089,192.34,192.16,6.40560935]
[1760967505322,5.40107089,192.3,192.15,6.40560935]
[1760967505625,4.6812,192.24,192.14,4.6833]
[1760967506321,5.40107089,192.3,192.13,5.40107089]
[1760967506322,4.6805,192.26,192.15,4.683]
[1760967506517,5.40107089,192.3,192.15,4.683]
[1760967506518,15.59,192.33,192.15,4.683]
[1760967506719,5.40107089,192.3,192.15,4.683]
[1760967506924,4.6809,192.25,192.15,4.683]
[1760967507421,4.6809,192.25,192.16,4.6827]
[1760967507624,4.6809,192.25,192.13,5.40107089]
[1760967507820,4.83530864,192.34,192.13,5.40107089]
[1760967508023,5.40107089,192.35,192.17,5.40107089]
[1760967508225,24.08,192.37,192.17,5.40107089]
[1760967508428,24.08,192.37,192.21,5.40107089]
[1760967508622,5.40107089,192.38,192.21,5.40107089]
[1760967510328,4.679,192.33,192.23,4.681]
[1760967510519,5.40107089,192.38,192.21,5.40107089]
[1760967512426,4.6778,192.37,192.27,4.6801]
[1760967512626,5.40107089,192.38,192.27,4.6801]
[1760967513120,5.40107089,192.38,192.25,4.6807]
[1760967514426,4.6787,192.34,192.25,4.6807]
[1760967515532,10.23637953,192.38,192.23,4.6812]
[1760967515832,4.6795,192.31,192.23,4.6812]
[1760967516231,21.99797696,192.4,192.17,31.22107089]
[1760967516232,5.40107089,192.36,192.17,31.22107089]
[1760967516424,6.40797696,192.4,192.17,31.22107089]
[1760967516425,4.83530864,192.4,192.21,5.40107089]
[1760967516620,140.12107089,192.48,192.25,5.40107089]
[1760967516621,4.83530864,192.44,192.25,5.40107089]
[1760967516819,5.40107089,192.46,192.25,5.40107089]
[1760967516820,4.83530864,192.45,192.25,5.40107089]
[1760967517023,4.83530864,192.45,192.29,5.40107089]
[1760967517429,9.51140864,192.45,192.35,4.6781]
[1760967517733,4.83530864,192.45,192.33,5.40107089]
[1760967517929,4.63328113,192.5,192.34,9.3571]
[1760967518131,4.63328113,192.5,192.37,5.40107089]
[1760967518431,6.40797696,192.56,192.49,4.6747]
[1760967518739,6.40797696,192.55,192.49,4.6747]
[1760967519229,6.40797696,192.56,192.49,4.6747]
[1760967519635,6.40797696,192.56,192.46,4.6754]
[1760967519938,6.40797696,192.55,192.41,5.40107089]
[1760967520332,6.40797696,192.55,192.47,4.6754]